bitfinex/quotes_ETHUSD_20250725
["timestamp","ask_amount","ask_price","bid_price","bid_amount"]
[1753418057043,0.1384,3620.5,3620.4,4.728]
[1753418057745,0.1384,3620.5,3620.1,0.00100001]
[1753418057952,0.1384,3620.5,3620.2,4.724]
[1753418058189,0.55,3620.7,3620.1,0.00100001]
[1753418058349,0.55,3620.4,3620.2,4.722]
[1753418058746,0.1384,3620.3,3620.2,4.722]
[1753418058981,0.55,3620.2,3620.1,0.00100001]
[1753418059491,0.9947,3620.2,3620.1,0.00100001]
[1753418059696,0.1384,3620.3,3620.2,2.76227832]
[1753418059980,0.55,3620.7,3620.1,7.48034653]
[1753418060188,0.55,3620.7,3620.5,2.76199863]
[1753418060348,0.55,3620.7,3620.1,4.71800001]
[1753418060349,0.55,3620.7,3620.6,7.48197315]
[1753418060555,7.19,3621.0,3620.6,4.72]
[1753418060556,0.55,3620.9,3620.6,4.72]
[1753418060958,7.19,3621.0,3620.1,0.76030001]
[1753418061160,0.55,3620.9,3620.5,2.76202903]
[1753418061579,0.55,3620.9,3620.3,2.76215231]
[1753418061885,0.55,3620.6,3620.1,0.00100001]
[1753418062076,0.55,3620.7,3620.4,4.719]
[1753418062264,0.55,3620.7,3620.5,2.76204099]
[1753418062459,7.19,3621.0,3620.4,4.719]
[1753418062460,3.31180022,3620.9,3620.4,4.719]
[1753418062659,3.31190254,3620.7,3620.1,2.76328641]
[1753418062862,7.19,3621.0,3620.3,2.76213142]
[1753418063062,7.19,3621.0,3620.3,2.76220202]
[1753418063387,4.0464641,3621.3,3620.2,4.718]
[1753418063388,0.002,3621.3,3620.5,2.76204944]
[1753418063558,0.002,3621.3,3621.2,2.76151551]
[1753418063886,0.002,3621.3,3621.2,4.726]
[1753418064587,0.002,3621.3,3620.8,2.76181345]
[1753418064772,0.002,3621.3,3621.2,4.722]
[1753418064982,0.55,3621.1,3620.9,4.721]
[1753418065183,0.55,3621.1,3621.0,2.76166804]
[1753418065485,0.002,3621.3,3620.9,5.1764]
[1753418065686,0.002,3621.3,3620.9,4.721]
[1753418065993,0.55,3621.2,3621.0,4.721]
[1753418066204,0.55,3621.0,3620.9,4.724]
[1753418066500,0.33136429,3621.0,3620.9,4.723]
[1753418066698,0.55,3620.9,3620.1,0.00100001]
[1753418066865,0.55,3620.4,3620.1,0.00100001]
[1753418067069,0.55,3620.5,3620.1,0.00100001]
[1753418067290,0.55,3620.3,3620.1,0.00100001]
[1753418067595,0.9947,3620.3,3620.1,0.00100001]
[1753418067797,0.55,3620.5,3620.1,0.00100001]
[1753418067997,0.55,3620.3,3620.1,0.00100001]
[1753418068302,0.55,3620.3,3620.1,4.71900001]
[1753418069064,0.55,3620.4,3620.1,4.71900001]
[1753418069371,0.92934577,3620.4,3620.1,4.71900001]
[1753418069697,0.1384,3620.2,3620.1,7.48132939]
[1753418069905,0.6884,3620.2,3620.1,7.48132939]
[1753418070201,0.6884,3620.2,3620.1,7.93672939]
[1753418070780,0.6884,3620.2,3620.1,7.48132939]
[1753418071432,0.6884,3620.2,3620.1,4.70900001]
[1753418071606,0.6884,3620.2,3620.1,4.70400001]
[1753418072227,0.6884,3620.2,3620.1,7.92175464]
[1753418072367,0.1384,3620.6,3620.1,8.53610561]
[1753418072572,7.19,3621.2,3621.1,2.76159178]
[1753418072775,0.1384,3621.2,3621.1,7.46559178]
[1753418072999,0.1384,3621.2,3621.1,4.704]
[1753418073200,0.002,3621.3,3620.5,0.4554]
[1753418073379,0.002,3621.3,3621.2,2.76151551]
[1753418073569,0.002,3621.3,3621.2,7.47751551]
[1753418073770,0.002,3621.3,3621.2,7.93291551]
[1753418073979,0.002,3621.3,3621.2,7.47751551]
[1753418074408,0.002,3621.3,3621.2,2.76151551]
[1753418074610,0.002,3621.3,3621.2,7.47551551]
[1753418074809,0.002,3621.3,3621.2,4.714]
[1753418075011,0.002,3621.3,3621.2,7.47551551]
[1753418075580,0.002,3621.3,3621.2,4.71]
[1753418075781,0.002,3621.3,3621.2,4.709]
[1753418075988,0.002,3621.3,3621.2,7.47051551]
[1753418076178,0.002,3621.3,3621.2,4.709]
[1753418076628,0.002,3621.3,3620.5,2.76197847]
[1753418076810,0.002,3621.3,3620.7,2.76184691]
[1753418077009,0.002,3621.3,3620.6,4.705]
[1753418077316,0.002,3621.3,3620.8,2.76179674]
[1753418077484,0.002,3621.3,3620.9,2.76173097]
[1753418077689,0.552,3621.3,3621.0,4.705]
[1753418077885,0.55,3621.1,3620.5,2.7620425]
[1753418078130,0.55,3621.1,3620.6,4.699]
[1753418078302,0.55,3621.2,3620.7,4.698]
[1753418078686,0.55,3621.0,3620.4,2.76205663]
[1753418079029,1.00194981,3621.0,3620.1,7.18400001]
[1753418079234,0.55,3620.5,3620.2,4.696]
[1753418079438,0.55,3620.3,3620.1,7.18400001]
[1753418079599,0.55,3620.3,3620.2,4.696]
[1753418080547,0.55,3620.3,3620.2,4.694]
[1753418081553,0.55,3620.3,3620.2,4.688]
[1753418081862,0.55,3620.3,3620.2,7.45027832]
[1753418082441,0.55,3620.3,3620.2,4.688]
[1753418082653,0.8108,3621.2,3620.1,7.18400001]
[1753418082957,0.8108,3621.2,3620.2,1.9554]
[1753418083141,0.1384,3620.9,3620.4,0.1384]
[1753418083346,0.96795374,3621.9,3621.2,2.76151551]
[1753418083660,0.96795374,3621.9,3621.6,3.54061051]
[1753418083826,0.1384,3622.2,3621.6,8.25261051]
[1753418084013,0.002,3622.7,3621.6,9.32141051]
[1753418084215,0.1384,3622.3,3621.6,9.32041051]
[1753418086018,0.55,3622.2,3621.6,3.99601051]
[1753418086232,0.1384,3622.1,3621.6,8.69701051]
[1753418086439,0.1384,3622.1,3621.6,8.24161051]
[1753418087044,0.1384,3622.1,3621.6,8.70881051]
[1753418087243,0.1384,3622.1,3621.6,9.16231051]
[1753418087458,0.1404,3622.5,3622.4,2.7606007]
[1753418087661,0.002,3622.5,3622.4,8.2733007]
[1753418087831,0.002,3622.5,3622.4,4.6364007]
[1753418088371,0.002,3622.5,3622.0,1.2316]
[1753418088555,0.002,3622.5,3622.2,2.76075313]
[1753418088759,0.002,3622.5,3622.3,4.695]
[1753418088933,0.002,3622.5,3621.8,7.6355]
[1753418088934,0.552,3622.5,3621.8,7.6355]
[1753418089277,0.55,3622.4,3621.9,4.692]
[1753418089571,0.552,3622.5,3622.0,4.692]
[1753418089749,3.31252626,3622.5,3622.0,4.692]
[1753418090151,0.002,3622.5,3622.0,4.692]
[1753418090353,0.002,3622.5,3621.8,7.182]
[1753418090673,0.002,3622.5,3621.9,7.4529818]
[1753418090877,0.002,3622.5,3622.2,2.7607113]
[1753418091078,0.002,3622.5,3622.3,4.687]
[1753418091838,0.002,3622.5,3622.4,4.681]
[1753418093578,0.002,3622.5,3622.4,4.679]
[1753418094484,0.002,3622.5,3622.4,7.4396007]
[1753418095154,0.002,3622.5,3622.4,8.3603007]
[1753418095475,0.002,3622.5,3622.4,8.3503007]
[1753418095654,0.002,3622.5,3622.4,7.8968007]
[1753418096045,0.002,3622.5,3622.4,3.2278007]
[1753418096247,0.002,3622.5,3622.4,7.8938007]
[1753418096778,0.002,3622.5,3622.4,3.2278007]
[1753418096984,0.002,3622.5,3622.4,4.665]
[1753418097293,0.002,3622.5,3622.4,4.661]
[1753418098039,0.002,3622.5,3621.8,9.94304207]
[1753418098284,0.55,3622.4,3621.9,4.66]
[1753418098594,0.1384,3622.1,3622.0,4.657]
[1753418098760,0.55,3622.0,3621.8,7.182]
[1753418098971,0.6884,3621.9,3621.8,7.182]
[1753418099302,0.6884,3621.9,3621.8,11.837]
[1753418100156,0.6884,3621.9,3621.8,7.182]
[1753418100360,0.6884,3621.9,3621.8,11.836]
[1753418100596,0.6884,3621.9,3621.8,11.832]
[1753418101729,0.002,3622.5,3621.8,12.7477]
[1753418102016,0.1384,3622.4,3622.1,2.76081634]
[1753418102177,0.1384,3622.4,3622.2,4.657]
[1753418102878,0.55,3622.3,3621.8,7.9759]
[1753418103082,0.1384,3622.1,3621.9,4.656]
[1753418103331,0.55,3622.0,3621.8,7.182]
[1753418103678,4.2611818,3621.9,3621.8,7.182]
[1753418103916,0.6884,3621.9,3621.8,11.833]
[1753418104077,3.4493818,3621.9,3621.8,7.182]
[1753418104279,4.5955184,3621.9,3620.9,0.6056]
[1753418104478,2.76204944,3620.5,3620.4,0.1384]
[1753418104711,0.55,3620.8,3620.2,0.001]
[1753418104912,0.55,3620.5,3620.4,4.649]
[1753418105083,3.45044944,3620.5,3620.4,4.649]
[1753418105585,2.76220202,3620.3,3620.2,0.001]
[1753418105780,7.24250202,3620.3,3620.2,0.001]
[1753418105980,8.19000202,3620.3,3620.2,0.001]
[1753418106297,7.10417832,3620.2,3619.3,0.001]
[1753418106516,7.10478887,3619.4,3619.3,0.001]
[1753418106709,7.10478887,3619.4,3619.1,0.04]
[1753418106710,3.55,3619.3,3619.1,0.04]
[1753418106895,1.4803,3619.2,3619.1,0.04]
[1753418107099,6.29967,3619.2,3619.1,0.04]
[1753418111012,6.29967,3619.2,3618.6,0.001]
[1753418111013,3.0,3619.0,3618.6,0.001]
[1753418111355,0.6884,3618.7,3618.6,0.001]
[1753418111552,4.25962332,3618.7,3618.6,0.001]
[1753418111710,9.02783565,3618.7,3618.6,0.001]
[1753418112748,7.0973052,3618.2,3618.1,0.041]
[1753418112943,7.2357052,3618.2,3618.1,1e-08]
[1753418113150,9.18314638,3618.2,3618.1,1e-08]
[1753418113506,2.76431869,3617.6,3617.3,1e-08]
[1753418113707,7.26851643,3617.4,3617.3,1e-08]
[1753418113945,7.26851643,3617.4,3617.1,1e-08]
[1753418113946,6.31456928,3617.2,3617.1,1e-08]
[1753418114250,7.25186928,3617.2,3617.1,1e-08]
[1753418114454,7.11385147,3616.7,3616.2,0.001]
[1753418114636,7.96363662,3616.7,3616.2,0.001]
[1753418114827,3.4536573,3616.3,3616.2,0.001]
[1753418115344,5.2145573,3616.3,3616.2,0.001]
[1753418115509,8.2145573,3616.3,3616.2,0.001]
[1753418115715,9.61252347,3616.3,3616.2,0.001]
[1753418116669,1.5018,3616.3,3616.2,0.001]
[1753418116872,0.55,3616.3,3616.2,0.001]
[1753418117530,6.3152573,3616.3,3616.2,0.001]
[1753418117726,3.55,3616.3,3616.2,0.001]
[1753418119355,6.3152573,3616.3,3616.2,0.001]
[1753418119557,3.55,3616.3,3616.2,0.001]
[1753418119967,6.3152573,3616.3,3616.2,0.001]
[1753418121272,6.31533377,3616.2,3616.1,0.041]
[1753418121483,0.55,3616.2,3616.1,0.041]
[1753418121682,6.31533377,3616.2,3616.1,0.041]
[1753418122180,6.31533377,3616.2,3616.1,4.667]
[1753418122346,0.55,3616.2,3616.1,5.4402]
[1753418122547,0.8197,3617.6,3616.1,6.3281]
[1753418122748,0.9016,3617.5,3616.1,1.2466]
[1753418122968,2.76517532,3616.5,3616.2,4.626]
[1753418123163,2.76487914,3616.8,3616.2,4.626]
[1753418123351,6.31533377,3616.2,3616.1,0.041]
[1753418123549,0.55,3616.2,3616.1,4.667]
[1753418124779,0.55,3616.2,3616.1,7.86481024]
[1753418125104,0.55,3616.2,3616.1,5.0994]
[1753418125600,0.55,3616.2,3616.1,0.041]
[1753418125799,3.31533377,3616.2,3616.1,0.041]
[1753418126001,8.20788628,3616.2,3616.1,0.041]
[1753418126205,8.65558628,3616.2,3616.1,0.041]
[1753418126368,7.75398628,3616.2,3616.1,0.041]
[1753418126698,3.6884,3616.2,3616.1,0.041]
[1753418128103,0.6884,3616.2,3616.1,3.69431024]
[1753418128405,7.3284,3617.0,3616.2,0.7838]
[1753418128604,7.3284,3617.0,3616.9,2.76479858]
[1753418128781,7.3284,3617.0,3616.9,7.39179858]
[1753418129106,7.3284,3617.0,3616.9,5.0594]
[1753418129468,0.55,3616.9,3616.3,7.19]
[1753418129800,0.1384,3617.5,3617.4,2.76440878]
[1753418130003,0.1384,3617.5,3617.4,8.27831643]
[1753418130213,0.1384,3617.5,3617.4,5.5139]
[1753418130795,0.1384,3617.5,3617.4,8.27831643]
[1753418130993,0.1384,3617.5,3617.4,5.0584]
[1753418131371,0.48365202,3617.5,3616.6,0.7677]
[1753418131597,0.55,3617.4,3616.8,2.76487502]
[1753418131899,0.55,3617.4,3616.8,0.4324]
[1753418132207,0.6884,3616.9,3616.8,0.4324]
[1753418132412,0.6884,3616.9,3616.8,3.65277448]
[1753418132633,0.6884,3616.9,3616.8,0.8879]
[1753418132809,0.55,3616.8,3616.2,0.7865]
[1753418133010,0.55,3616.5,3616.3,7.99519228]
[1753418133321,0.55,3616.6,3616.5,2.76510438]
[1753418133628,0.55,3616.6,3616.5,3.65300438]
[1753418134492,0.55,3616.6,3616.5,0.8879]
[1753418134938,0.55,3616.6,3616.5,0.4324]
[1753418135230,0.55,3616.6,3616.4,4.626]
[1753418135400,0.55,3616.6,3616.4,7.391163]
[1753418135601,0.55,3616.6,3616.5,0.4324]
[1753418135940,0.55,3616.6,3616.5,4.626]
[1753418136348,0.55,3616.6,3616.2,0.7865]
[1753418136574,0.55,3616.8,3616.5,4.626]
[1753418136779,0.55,3617.0,3616.6,0.4324]
[1753418137066,0.55,3617.1,3616.5,4.626]
[1753418137286,0.6884,3616.6,3616.5,4.626]
[1753418137434,0.55,3616.5,3616.2,3.98422326]
[1753418137635,0.1384,3616.6,3616.3,5.0584]
[1753418137958,0.1384,3616.6,3616.4,4.626]
[1753418138287,0.1384,3616.6,3616.2,0.7865]
[1753418138585,0.1384,3616.3,3616.1,0.041]
[1753418138752,0.1384,3616.3,3616.2,5.0815]
[1753418139120,0.1384,3616.3,3616.2,7.84683377]
[1753418139254,0.55,3616.8,3616.2,5.5139]
[1753418139585,0.1384,3616.5,3616.4,2.76518084]
[1753418139741,2.76402093,3618.0,3617.2,2.76451614]
[1753418139932,0.1384,3617.5,3617.3,4.626]
[1753418140162,0.1384,3617.5,3617.4,3.65231643]
[1753418140573,0.6884,3617.5,3617.4,3.65231643]
[1753418140763,0.1384,3617.5,3617.4,3.65231643]
[1753418141475,0.1384,3617.5,3617.4,1.3879]
[1753418141646,0.1384,3617.5,3617.4,5.126]
[1753418141840,0.1384,3617.5,3617.4,0.5]
[1753418141841,0.6884,3617.5,3617.4,0.5]
[1753418142041,0.6904,3617.5,3617.4,4.626]
[1753418142460,0.6904,3617.5,3616.5,1.2649]
[1753418142461,0.55,3617.4,3616.5,1.2649]
[1753418142775,0.1384,3617.1,3616.7,2.76492621]
[1753418142975,3.55,3617.3,3616.7,2.76492621]
[1753418143147,0.55,3616.8,3616.7,2.76492621]
[1753418143345,0.55,3616.8,3616.7,7.38992621]
[1753418143546,0.55,3616.8,3616.7,3.65282621]
[1753418143748,0.55,3616.8,3616.7,8.27782621]
[1753418144281,0.002,3617.5,3617.4,2.76441643]
[1753418144439,0.002,3617.5,3617.4,8.21601643]
[1753418144640,0.002,3617.5,3617.4,9.10391643]
[1753418144869,0.002,3617.5,3617.4,1.259]
[1753418145078,0.002,3617.5,3617.0,0.965]
[1753418145283,0.552,3617.5,3617.0,0.8266]
[1753418145608,0.55,3617.2,3617.1,8.27754571]
[1753418146243,0.55,3617.2,3617.1,9.54064571]
[1753418146777,0.55,3617.2,3617.1,2.151]
[1753418147077,0.55,3617.2,3617.1,7.88964571]
[1753418147571,0.55,3617.2,3617.1,0.5]
[1753418147884,0.55,3617.2,3617.1,3.26464571]
[1753418148042,0.55,3617.2,3617.1,8.80014571]
[1753418149055,0.55,3617.2,3617.1,4.17514571]
[1753418149262,0.55,3617.2,3617.1,8.79914571]
[1753418149645,0.55,3617.2,3617.1,4.17514571]
[1753418150049,0.55,3617.2,3617.1,8.79914571]
[1753418152091,0.1404,3617.5,3617.4,3.58541643]
[1753418152092,0.002,3617.5,3617.4,3.58541643]
[1753418152303,0.002,3617.5,3617.4,7.38841643]
[1753418152679,0.002,3617.5,3617.4,8.29891643]
[1753418154884,0.002,3617.5,3617.4,2.76441643]
[1753418155062,0.6904,3617.5,3617.4,7.38741643]
[1753418155782,0.6904,3617.5,3617.4,7.83951643]
[1753418156484,0.552,3617.5,3617.4,8.29791643]
[1753418156686,0.552,3617.5,3617.4,3.67491643]
[1753418157005,0.552,3617.5,3617.4,7.38641643]
[1753418157210,0.552,3617.5,3617.4,2.76441643]
[1753418157393,0.6904,3617.5,3617.4,7.38641643]
[1753418157595,0.1404,3617.5,3617.4,4.622]
[1753418157783,0.002,3617.5,3617.4,7.38641643]
[1753418158308,0.002,3617.5,3617.4,2.76441643]
[1753418158464,0.002,3617.5,3617.4,7.38641643]
[1753418159080,0.002,3617.5,3617.4,7.83851643]
[1753418159403,0.002,3617.5,3617.4,8.29691643]
[1753418159599,0.002,3617.5,3617.4,8.43531643]
[1753418159800,0.002,3618.0,3617.4,8.43531643]
[1753418159801,0.002,3618.0,3617.9,2.76403438]
[1753418159975,0.002,3618.0,3617.9,17.8345805]
[1753418160176,0.002,3618.0,3617.9,13.3509805]
[1753418160473,0.002,3618.0,3617.9,14.57303438]
[1753418160675,0.002,3618.0,3617.9,9.95203438]
[1753418160864,0.002,3618.0,3617.9,11.809]
[1753418161066,0.002,3618.0,3617.9,15.48353438]
[1753418161311,0.002,3618.0,3617.9,16.42173438]
[1753418161694,0.002,3619.0,3618.7,2.76342332]
[1753418161892,0.002,3619.0,3618.8,8.18414696]
[1753418162228,0.002,3619.0,3618.8,9.23304696]
[1753418162802,0.002,3619.0,3618.8,4.47364696]
[1753418162990,0.002,3619.0,3618.8,9.23304696]
[1753418163711,0.002,3619.0,3618.8,9.22924696]
[1753418164116,0.002,3619.0,3618.8,8.31774696]
[1753418164622,0.002,3619.0,3618.8,9.22824696]
[1753418166006,0.002,3619.0,3618.8,4.60824696]
[1753418166208,0.002,3619.0,3618.8,9.22724696]
[1753418167214,0.002,3619.0,3618.9,2.7632706]
[1753418167389,1e-08,3619.0,3618.9,11.62294397]
[1753418167592,1e-08,3619.0,3618.9,11.59531127]
[1753418167925,1e-08,3619.9,3619.8,3.55998356]
[1753418168115,0.04,3620.9,3620.3,2.76220202]
[1753418168314,0.04,3621.9,3621.8,2.76105803]
[1753418168498,0.04,3621.9,3621.8,7.37905803]
[1753418168699,0.002,3622.4,3622.3,2.76067691]
[1753418168911,0.002,3622.4,3622.3,8.28917691]
[1753418169415,0.002,3622.4,3622.3,9.09857691]
[1753418169602,0.002,3622.4,3622.3,4.48057691]
[1753418169802,0.002,3622.4,3621.6,0.8094]
[1753418170128,3.0,3622.1,3621.7,4.617]
[1753418170315,0.55,3621.9,3621.8,4.617]
[1753418170521,1.0025,3621.9,3621.8,4.617]
[1753418170734,1.446,3621.9,3621.8,4.617]
[1753418171027,0.55,3621.7,3621.2,7.185]
[1753418171229,0.55,3621.5,3620.3,0.8094]
[1753418171401,1.446,3621.4,3620.1,0.04]
[1753418171601,0.55,3621.3,3620.3,2.76220202]
[1753418171802,0.4525,3621.4,3621.0,2.76165622]
[1753418172006,0.55,3621.4,3621.1,4.617]
[1753418172204,0.55,3621.2,3620.5,2.76204944]
[1753418172426,1.0171073,3621.2,3620.8,2.76181928]
[1753418172729,0.55,3621.4,3620.9,4.616]
[1753418173404,1.0025,3621.4,3620.4,0.9105]
[1753418173597,0.45733226,3621.3,3620.8,2.76181413]
[1753418173797,0.45733226,3621.3,3620.9,4.615]
[1753418173996,1.0025,3621.4,3620.9,4.615]
[1753418174255,0.55,3621.4,3620.9,7.37674267]
[1753418174551,0.55,3621.4,3620.9,4.615]
[1753418174761,0.55,3621.4,3620.9,5.5255]
[1753418174935,0.55,3621.2,3621.0,4.615]
[1753418175130,0.55,3621.2,3621.1,4.614]
[1753418175823,0.55,3621.1,3620.2,7.185]
[1753418176021,0.55,3621.1,3620.4,2.76205831]
[1753418176448,0.55,3621.1,3620.5,2.76204554]
[1753418176651,0.55,3621.1,3620.6,7.37596258]
[1753418177365,0.4525,3621.2,3620.7,4.614]
[1753418177534,0.55,3621.4,3620.8,2.76178572]
[1753418177722,0.40134453,3621.4,3620.7,4.614]
[1753418177920,0.55,3621.4,3620.7,4.614]
[1753418178154,0.55,3621.4,3620.7,7.37584071]
[1753418178330,0.55,3620.9,3620.7,7.37584071]
[1753418178828,0.55,3620.9,3620.8,2.76182059]
[1753418179166,0.7711,3621.9,3620.9,3.55294431]
[1753418179328,0.7731,3622.4,3621.2,7.12414067]
[1753418179659,0.7731,3622.4,3621.6,2.76121051]
[1753418179660,0.1384,3622.2,3621.6,2.76121051]
[1753418179866,0.1384,3622.2,3622.1,2.76082935]
[1753418180054,0.1384,3622.2,3622.1,7.37382935]
[1753418180251,0.002,3622.4,3622.3,2.76067691]
[1753418180448,0.002,3622.4,3622.3,7.51207691]
[1753418180643,0.002,3622.4,3622.3,2.89907691]
[1753418180966,0.002,3622.4,3622.3,7.37367691]
[1753418181160,0.002,3622.4,3622.3,2.76067691]
[1753418181367,0.002,3622.4,3622.3,4.612]
[1753418181550,0.002,3622.4,3622.1,2.76081271]
[1753418181756,0.002,3622.4,3622.3,2.76067691]
[1753418182270,0.002,3622.4,3622.3,4.60868367]
[1753418182442,1e-08,3622.7,3622.6,2.76044829]
[1753418182641,1e-08,3622.7,3622.6,7.37244829]
[1753418182954,1e-08,3622.7,3622.6,8.43574829]
[1753418183932,1e-08,3622.7,3622.6,3.82374829]
[1753418184139,1e-08,3622.7,3622.6,8.46235277]
[1753418184347,1e-08,3622.7,3622.6,8.43474829]
[1753418184555,1e-08,3622.9,3622.8,2.7602959]
[1753418184753,0.1796,3623.9,3623.3,2.75991499]
[1753418184941,0.042,3623.9,3623.7,2.75961034]
[1753418185291,0.042,3623.9,3623.8,2.75953419]
[1753418185435,0.042,3623.9,3623.8,3.71202953]
[1753418185641,0.042,3623.9,3623.8,8.32202953]
[1753418185944,0.1376,3624.6,3623.7,10.90811034]
[1753418185945,0.1376,3624.5,3623.7,8.1485]
[1753418186146,0.1376,3624.3,3623.8,4.61]
[1753418186375,0.1376,3624.3,3623.7,7.3176]
[1753418186376,0.55,3624.2,3624.1,2.75930575]
[1753418186754,0.55,3624.2,3624.1,7.36930575]
[1753418186967,0.55,3624.2,3624.1,4.61]
[1753418187160,0.55,3624.2,3624.1,7.36930575]
[1753418187362,0.04,3624.9,3624.3,2.75915349]
[1753418187542,0.04,3624.9,3624.2,2.75922962]
[1753418187543,0.1376,3624.5,3624.4,7.36807515]
[1753418187736,0.04,3624.9,3624.8,2.75877289]
[1753418188273,0.04,3624.9,3624.8,7.36677289]
[1753418189368,0.04,3624.9,3624.8,8.42927289]
[1753418189571,0.04,3624.9,3624.8,7.36677289]
[1753418189743,0.59,3624.9,3624.8,7.36677289]
[1753418189949,0.55,3624.8,3623.7,7.18]
[1753418190246,0.6876,3624.8,3624.3,0.1376]
[1753418190465,0.6876,3624.8,3624.4,4.607]
[1753418190657,0.6876,3624.8,3624.7,2.758849]
[1753418190857,0.6876,3624.8,3624.7,4.607]
[1753418191052,0.6876,3624.8,3624.7,7.365849]
[1753418191274,0.6876,3624.8,3624.7,4.607]
[1753418191450,0.6876,3624.8,3624.3,0.1376]
[1753418191656,0.1376,3624.4,3623.7,7.3176]
[1753418191864,0.55,3624.1,3623.8,4.607]
[1753418192087,0.55,3624.1,3624.0,2.75936707]
[1753418192390,0.55,3624.1,3623.9,2.75944132]
[1753418192589,0.55,3624.1,3623.8,7.84001707]
[1753418192796,0.55,3624.1,3623.9,2.75945501]
[1753418193089,0.55,3624.1,3623.8,5.0805]
[1753418193090,0.55,3624.1,3624.0,2.75938189]
[1753418193497,0.7557,3624.0,3623.3,7.176]
[1753418193698,2.75983882,3623.4,3623.3,7.176]
[1753418193991,5.11603882,3623.4,3623.3,7.176]
[1753418194194,8.11603882,3623.4,3623.3,7.176]
[1753418194568,5.11603882,3623.4,3623.3,11.781]
[1753418194772,9.20361712,3623.4,3623.3,11.781]
[1753418195591,9.20361712,3623.4,3622.1,0.04]
[1753418195592,1.381,3622.3,3622.1,0.04]
[1753418195770,1.381,3622.3,3622.2,4.605]
[1753418196175,0.1384,3622.3,3622.2,4.605]
[1753418197682,0.1384,3622.3,3622.2,7.36575313]
[1753418197887,0.1384,3622.3,3622.2,4.605]
[1753418198096,0.7766,3622.7,3622.2,4.605]
[1753418198264,0.1384,3622.3,3622.2,4.605]
[1753418198469,0.1384,3622.3,3622.1,0.04]
[1753418198798,8.00215313,3622.2,3622.1,0.04]
[1753418198999,5.2414,3622.2,3622.1,4.645]
[1753418199203,8.81619889,3622.2,3622.1,4.645]
[1753418199706,8.81619889,3622.2,3622.1,0.04]
[1753418199869,0.55,3621.9,3621.1,0.04]
[1753418200070,3.44991551,3621.2,3621.1,0.04]
[1753418200308,6.44991551,3621.2,3621.1,4.645]
[1753418200597,8.17071551,3621.2,3621.1,4.645]
[1753418201502,4.9667,3621.2,3621.1,4.645]
[1753418202000,8.17071551,3621.2,3621.1,4.645]
[1753418202203,9.26392605,3621.2,3621.1,4.645]
[1753418202501,7.07909687,3620.7,3620.6,7.179]
[1753418202687,7.99199687,3620.7,3620.6,1e-08]
[1753418203003,3.31281254,3619.5,3619.4,7.179]
[1753418203188,7.17911254,3619.5,3619.4,7.179]
[1753418203387,8.07061254,3619.5,3619.4,11.784]
[1753418203703,8.07061254,3619.5,3619.4,7.179]
[1753418204004,9.15394529,3619.5,3619.4,11.784]
[1753418204165,0.6884,3619.5,3619.4,14.54688887]
[1753418204377,0.8162,3620.6,3620.0,2.76240826]
[1753418204614,3.36409168,3622.3,3620.1,4.63262354]
[1753418204615,0.1384,3620.3,3620.1,4.63262354]
[1753418204778,0.7878,3621.4,3620.8,2.76175456]
[1753418204973,0.7878,3621.4,3620.9,7.36567807]
[1753418205212,0.1384,3621.1,3621.0,3.68656804]
[1753418205393,0.1384,3621.3,3621.0,0.4735]
[1753418205596,0.1384,3621.3,3620.9,4.604]
[1753418205811,2.76166804,3621.0,3620.9,4.604]
[1753418205975,0.9320068,3621.0,3620.4,0.1384]
[1753418206181,0.7936068,3621.0,3620.5,4.606]
[1753418206489,0.55,3620.9,3620.5,4.606]
[1753418206686,0.55,3621.1,3620.5,5.0795]
[1753418206896,3.0,3620.7,3620.6,4.605]
[1753418207114,3.0,3620.8,3620.6,4.605]
[1753418207319,3.31175984,3620.9,3619.4,7.179]
[1753418207320,0.4596,3620.7,3619.4,7.179]
[1753418207518,8.1996,3620.8,3619.5,3.65879493]
[1753418207684,0.55,3620.6,3619.6,4.605]
[1753418207880,0.55,3620.6,3619.7,0.48442659]
[1753418208091,0.55,3620.6,3619.8,0.4392]
[1753418208315,0.8198,3621.5,3620.0,0.7922]
[1753418208514,4.4280269,3621.5,3620.7,2.76184206]
[1753418208704,0.55,3621.2,3620.8,4.605]
[1753418209017,3.0,3621.3,3620.9,4.605]
[1753418209332,0.55,3621.2,3621.0,4.605]
[1753418209479,0.55,3621.1,3620.3,3.65818375]
[1753418209680,3.55,3621.1,3620.5,2.76204944]
[1753418209915,2.76174431,3620.9,3620.1,2.76234277]
[1753418210118,3.3118251,3620.8,3620.2,4.605]
[1753418210284,3.3118251,3620.8,3620.1,2.76234277]
[1753418210484,3.3118251,3620.8,3620.0,0.7922]
[1753418210485,0.55,3620.8,3620.0,0.7922]
[1753418210717,0.55,3620.3,3620.1,4.605]
[1753418210921,0.55,3620.5,3620.1,4.605]
[1753418211300,3.31198751,3620.6,3620.1,0.4392]
[1753418211616,0.4596,3621.0,3619.8,0.4568]
[1753418211830,0.55,3620.5,3619.4,7.18]
[1753418212028,0.55,3619.9,3619.5,4.605]
[1753418212235,3.31248256,3620.0,3619.5,4.605]